{"text_format":"1","workbook":"xlsx","n_sheets":6,"sheets":["EAU","fontaines","liste fontaine","controle T° eau ","base de données t°","Feuil6"],"not_rendered":{"charts":0,"images":13,"macros":1,"external_links":0,"defined_names":5,"comments":0,"pivot_tables":0},"unopened":[],"bounds":{"document_bytes":16777216,"sheet_cells":100000,"rows_first":2000,"rows_last":500,"rows_between":2000,"halvings":0,"cell_chars":16384,"cell_head_chars":4096},"cells_cut":0,"cells_raw":0,"read":"whole","date_system":"1900"}

{"sheet":"EAU","index":0,"n_rows":0,"n_cols":0,"rows_kept":0,"cut":false,"hidden":false,"merged":[]}

{"sheet":"fontaines","index":1,"n_rows":25,"n_cols":9,"rows_kept":25,"cut":false,"hidden":false,"merged":[[11,10,20,14],[2,5,5,13]]}
[]
[]
[null,null,null,null,null,"FONTAINES"]
[]
[]
[]
[]
[]
[]
[]
[null,null,null,null,null,null,null,"designation ","fontaine pasa"]
[]
[null,null,null,null,null,null,null,"localisation",{"$f":"VLOOKUP($I$11,'liste fontaine'!$A$1:$H$8,2,FALSE)","v":"pasa"}]
[]
[null,null,null,null,null,null,null,"marque",{"$f":"VLOOKUP($I$11,'liste fontaine'!$A$1:$H$8,3,FALSE)","v":"cosmetal"}]
[]
[null,null,null,null,null,null,null,"modèle",{"$f":"VLOOKUP($I$11,'liste fontaine'!$A$1:$H$8,4,FALSE)","v":"niagara 55 IB C 2E"}]
[]
[null,null,null,null,null,null,null," ref cartouche",{"$f":"VLOOKUP($I$11,'liste fontaine'!$A$1:$H$8,5,FALSE)","v":"purity fresh C50 brita"}]
[]
[null,null,null,null,null,null,null,"date changement cartouche",{"$f":"VLOOKUP($I$11,'liste fontaine'!$A$1:$H$8,6,FALSE)","v":"2020-04-20"}]
[]
[null,null,null,null,null,null,null,"prochain changement de cartouche",{"$f":"VLOOKUP($I$11,'liste fontaine'!$A$1:$H$8,7,FALSE)","v":"2021-04-20"}]
[]
[null,null,null,null,null,null,null,"changement mousseurs ",{"$f":"VLOOKUP($I$11,'liste fontaine'!$A$1:$H$8,8,FALSE)","v":"2021-04-20"}]

{"sheet":"liste fontaine","index":2,"n_rows":8,"n_cols":10,"rows_kept":8,"cut":false,"hidden":false,"merged":[]}
["designation ","localisation","marque","modèle"," ref cartouche","date changement cartouche","prochain changement de cartouche","changement mousseurs ","photos fontaines","refimages"]
["fontaine pasa","pasa","cosmetal","niagara 55 IB C 2E","purity fresh C50 brita","2020-04-20","2021-04-20","2021-04-20",null,{"$f":"\"'liste fontaine'!\"&ADDRESS(ROW($J$2),COLUMN($I$2))","v":"'liste fontaine'!$I$2"}]
["fontaine salon rdc","salon rdc","cosmetal","niagara 55 IB C 2E","purity fresh C50 brita","2020-04-20","2021-04-20","2021-04-20",null,{"$f":"\"'liste fontaine'!\"&ADDRESS(ROW($J$3),COLUMN($I$3))","v":"'liste fontaine'!$I$3"}]
["fontaine salon oliviers","salon olivier","cosmetal","niagara 55 IB C 2E","purity fresh C50 brita","2020-04-20","2021-04-20","2021-04-20",null,{"$f":"\"'liste fontaine'!\"&ADDRESS(ROW($J$4),COLUMN($I$4))","v":"'liste fontaine'!$I$4"}]
["fontaine salon 1 étage","salon 1 étage","cosmetal","niagara 55 IB C 2E","purity fresh C50 brita","2020-04-20","2021-04-20","2021-04-20",null,{"$f":"\"'liste fontaine'!\"&ADDRESS(ROW($J$5),COLUMN($I$5))","v":"'liste fontaine'!$I$5"}]
["fontaine SAM ","bar SAM","cosmetal","niagara TOP80 IB C 2E ","purity fresh C50 brita","2020-04-20","2021-04-20","2021-04-20",null,{"$f":"\"'liste fontaine'!\"&ADDRESS(ROW($J$6),COLUMN($I$6))","v":"'liste fontaine'!$I$6"}]
["fontaine accueil","salon accueil","mistral","evopure efet ","filtropure triple action 5000","2020-04-20","2021-04-20","2021-04-20",null,{"$f":"\"'liste fontaine'!\"&ADDRESS(ROW($J$7),COLUMN($I$7))","v":"'liste fontaine'!$I$7"}]
["fontaine lingerie","salle sechoir","mistral","evopure efet ","filtropure triple action 5000","2020-04-20","2021-04-20","2021-04-20",null,{"$f":"\"'liste fontaine'!\"&ADDRESS(ROW($J$8),COLUMN($I$8))","v":"'liste fontaine'!$I$8"}]

{"sheet":"controle T° eau ","index":3,"n_rows":22,"n_cols":16,"rows_kept":22,"cut":false,"hidden":false,"merged":[[2,5,5,13]]}
[]
[]
[null,null,null,null,null,"relevé de températures"]
[]
[null,null,null,null,null,null,null,null,null,null,null,null,null,null,null,{"$f":"DATE(2021,3,26)","v":"2021-03-26"}]
[]
[]
[]
[]
[null,null,null,null,null,null,null,null,null,"liste mois"]
[null,null,null,null,null,null,{"$f":"'base de données t°'!A2","v":"RDJ / VESTIAIRES HOMMES"}]
[null,null,null,null,null,null,{"$f":"'base de données t°'!A3","v":"RDJ /  VESTAIRES FEMMES"}]
[null,null,null,null,null,null,{"$f":"'base de données t°'!A4","v":"RDJ / LINGERIE"}]
[null,null,null,null,null,null,{"$f":"'base de données t°'!A5","v":"RDC / CH CAPUCINES"}]
[null,null,null,null,null,null,{"$f":"'base de données t°'!A6","v":"RDC / CH HORTENSIAS"}]
[null,null,null,null,null,null,{"$f":"'base de données t°'!A7","v":"RDC / CH LILAS (UPAD)"}]
[null,null,null,null,null,null,{"$f":"'base de données t°'!A8","v":"RDC / SANITAIRES PASA"}]
[null,null,null,null,null,null,{"$f":"'base de données t°'!A9","v":"RDC / SANITAIRES ACCUEIL"}]
[null,null,null,null,null,null,{"$f":"'base de données t°'!A10","v":"RDC / CUISINE"}]
[null,null,null,null,null,null,{"$f":"'base de données t°'!A11","v":"1ER ETAGE / CH CITRONNIERS"}]
[null,null,null,null,null,null,{"$f":"'base de données t°'!A12","v":"1ER ETAGE / CH OLIVIERS"}]
[null,null,null,null,null,null,{"$f":"'base de données t°'!A13","v":"1ER ETAGE / CH VIOLETTES"}]

{"sheet":"base de données t°","index":4,"n_rows":13,"n_cols":14,"rows_kept":13,"cut":false,"hidden":false,"merged":[]}
["lieu de ponction","janvier","février","mars","avril","mai","juin","juillet","août","septembre","octobre","novembre","décembre","observation/commentaires"]
["RDJ / VESTIAIRES HOMMES"]
["RDJ /  VESTAIRES FEMMES"]
["RDJ / LINGERIE"]
["RDC / CH CAPUCINES"]
["RDC / CH HORTENSIAS"]
["RDC / CH LILAS (UPAD)"]
["RDC / SANITAIRES PASA"]
["RDC / SANITAIRES ACCUEIL"]
["RDC / CUISINE"]
["1ER ETAGE / CH CITRONNIERS"]
["1ER ETAGE / CH OLIVIERS"]
["1ER ETAGE / CH VIOLETTES"]

{"sheet":"Feuil6","index":5,"n_rows":0,"n_cols":0,"rows_kept":0,"cut":false,"hidden":false,"merged":[]}